bitfinex/quotes_BTCUSD_20241010
["timestamp","ask_amount","ask_price","bid_price","bid_amount"]
[1728541691001,0.28507011,61062.0,61061.0,0.16377]
[1728541691436,0.12838805,61062.0,61061.0,0.16377]
[1728541691660,0.30958412,61062.0,61061.0,0.16377]
[1728541692351,0.30998327,61062.0,61061.0,0.16377]
[1728541692567,0.18716575,61062.0,61061.0,0.16377]
[1728541698571,0.18728157,61062.0,61061.0,0.16377]
[1728541725991,0.18740287,61062.0,61061.0,0.16377]
[1728541730817,0.18744822,61062.0,61061.0,0.16377]
[1728541734933,0.18744822,61062.0,61061.0,0.33797]
[1728541735146,0.18744822,61062.0,61061.0,0.46387928]
[1728541735564,0.18744822,61062.0,61061.0,0.47082176]
[1728541735792,0.12880334,61062.0,61061.0,0.47082176]
[1728541736037,0.31043356,61062.0,61061.0,0.47082176]
[1728541738416,0.18744822,61062.0,61061.0,0.47082176]
[1728541738642,0.18744822,61062.0,61061.0,0.34291248]
[1728541738850,0.18744822,61062.0,61061.0,0.33797]
[1728541740309,0.18734811,61062.0,61061.0,0.33797]
[1728541740511,0.18734811,61062.0,61061.0,0.33997]
[1728541746505,0.28567766,61062.0,61061.0,0.33997]
[1728541748529,0.28562569,61062.0,61061.0,0.33997]
[1728541753277,0.2856046,61062.0,61061.0,0.33997]
[1728541753544,0.18728563,61062.0,61061.0,0.33997]
[1728541755412,0.28560409,61062.0,61061.0,0.33997]
[1728541756068,0.28560409,61062.0,61061.0,0.46587928]
[1728541756303,0.28560409,61062.0,61061.0,0.33997]
[1728541758126,0.28560207,61062.0,61061.0,0.33997]
[1728541758523,0.28560207,61062.0,61061.0,0.34491248]
[1728541758740,0.005818,61062.0,61061.0,0.44491248]
[1728541758948,0.1041356,61062.0,61061.0,0.44491248]
[1728541759170,0.1041356,61062.0,61061.0,0.57082176]
[1728541759821,0.28560071,61062.0,61061.0,0.57082176]
[1728541760109,0.05497277,61062.0,61061.0,0.57082176]
[1728541760316,0.005818,61062.0,61061.0,0.74696482]
[1728541760549,0.005818,61062.0,61061.0,0.7316594]
[1728541760778,0.005818,61062.0,61061.0,0.74695849]
[1728541761218,0.000818,61062.0,61061.0,0.74695849]
[1728541761489,0.000818,61062.0,61061.0,0.75795849]
[1728541761916,0.000818,61062.0,61061.0,0.74695849]
[1728541762130,0.000818,61062.0,61061.0,0.75995849]
[1728541762766,0.000818,61062.0,61061.0,0.77195849]
[1728541763881,0.000818,61062.0,61061.0,0.7566594]
[1728541764112,0.000818,61062.0,61061.0,0.77194416]
[1728541767671,0.000818,61062.0,61061.0,0.79994416]
[1728541770544,0.000818,61062.0,61061.0,0.86547016]
[1728541771628,0.000818,61063.0,61062.0,0.00694248]
[1728541771864,0.000818,61063.0,61062.0,0.65173188]
[1728541773057,0.000818,61063.0,61062.0,0.78364116]
[1728541774002,0.000818,61063.0,61062.0,0.79564116]
[1728541774249,0.000818,61063.0,61062.0,0.79562259]
[1728541774728,0.000818,61063.0,61062.0,0.79562379]
[1728541774966,0.000818,61063.0,61062.0,0.7803564]
[1728541775425,0.000818,61063.0,61062.0,0.79562381]
[1728541776148,0.000818,61063.0,61062.0,0.82011002]
[1728541781018,0.000818,61063.0,61062.0,0.82011285]
[1728541784386,0.000818,61073.0,61072.0,0.56779276]
[1728541786718,0.000818,61073.0,61072.0,0.56879276]
[1728541788671,0.000818,61073.0,61072.0,0.7296304]
[1728541790272,0.000818,61073.0,61072.0,0.7286304]
[1728541790721,0.000818,61073.0,61072.0,0.7316304]
[1728541791400,0.000818,61073.0,61072.0,0.7336304]
[1728541792503,0.000818,61073.0,61072.0,0.75715607]
[1728541793657,0.000818,61073.0,61072.0,0.59631843]
[1728541793889,0.000818,61073.0,61072.0,0.42311843]
[1728541794119,0.000818,61073.0,61072.0,0.42511843]
[1728541795468,0.000818,61073.0,61072.0,0.42311843]
[1728541795904,0.000818,61073.0,61072.0,0.42411843]
[1728541796167,0.000818,61073.0,61072.0,0.42511843]
[1728541796386,0.000818,61073.0,61072.0,0.42311843]
[1728541796611,0.000818,61073.0,61072.0,0.42511843]
[1728541799538,0.000818,61073.0,61072.0,0.58595607]
[1728541799751,0.000818,61073.0,61072.0,0.76335607]
[1728541801779,0.000818,61073.0,61072.0,0.50621843]
[1728541802664,0.000818,61073.0,61072.0,0.42511843]
[1728541805483,0.04992474,61073.0,61072.0,0.42511843]
[1728541808373,0.000818,61073.0,61072.0,0.42511843]
[1728541809605,0.000818,61073.0,61072.0,1.01259427]
[1728541809851,0.000818,61073.0,61072.0,0.78725607]
[1728541810559,0.000818,61073.0,61072.0,0.78225607]
[1728541810815,0.000818,61073.0,61072.0,0.79425607]
[1728541811052,0.07368041,61086.0,61085.0,0.163706]
[1728541811053,0.04912027,61086.0,61085.0,0.163706]
[1728541811289,0.04912027,61087.0,61086.0,0.165703]
[1728541812213,0.04912027,61087.0,61086.0,0.17064548]
[1728541812429,0.04912027,61088.0,61087.0,0.1657]
[1728541812670,0.04912027,61088.0,61087.0,0.29160928]
[1728541813161,0.04993727,61089.0,61088.0,0.263698]
[1728541813388,0.000817,61089.0,61088.0,0.263698]
[1728541814059,0.000817,61089.0,61088.0,0.265698]
[1728541814281,0.000817,61089.0,61088.0,0.263698]
[1728541815746,0.000817,61089.0,61088.0,0.265698]
[1728541817087,0.000817,61089.0,61088.0,0.28948785]
[1728541819143,0.000817,61089.0,61088.0,0.28748785]
[1728541821612,0.000817,61089.0,61088.0,0.28948785]
[1728541825175,0.000817,61089.0,61088.0,0.28748785]
[1728541828681,0.000817,61089.0,61088.0,0.18748785]
[1728541831700,0.04982469,61089.0,61088.0,0.18748785]
[1728541833279,0.04983465,61089.0,61088.0,0.18748785]
[1728541833495,0.000817,61089.0,61088.0,0.18748785]
[1728541841138,0.000817,61089.0,61088.0,0.49479713]
[1728541842132,0.000817,61089.0,61088.0,0.59479713]
[1728541842666,0.000817,61089.0,61088.0,0.59973961]
[1728541849797,0.000817,61089.0,61088.0,0.76057725]
[1728541850083,0.000817,61089.0,61088.0,0.77586569]
[1728541851214,0.000817,61089.0,61088.0,0.76257725]
[1728541851454,0.000817,61089.0,61088.0,0.77786491]
[1728541851916,0.000817,61089.0,61088.0,0.78086491]
[1728541856419,0.000817,61089.0,61088.0,0.76557725]
[1728541856655,0.000817,61089.0,61088.0,0.78086223]
[1728541857166,0.000817,61089.0,61088.0,0.78086212]
[1728541857915,0.000817,61089.0,61088.0,0.76557725]
[1728541858829,0.000817,61089.0,61088.0,0.78086152]
[1728541859052,0.000817,61089.0,61088.0,1.02919972]
[1728541859275,0.000817,61089.0,61088.0,0.80386152]
[1728541859957,0.000817,61089.0,61088.0,0.80186152]
[1728541860465,0.000817,61089.0,61088.0,0.81186152]
[1728541860696,0.000817,61089.0,61088.0,0.80886152]
[1728541860916,0.000817,61089.0,61088.0,0.833304]
[1728541861585,0.000817,61089.0,61088.0,0.823304]
[1728541861845,0.000817,61089.0,61088.0,0.821304]
[1728541862024,0.000817,61089.0,61088.0,0.810304]
[1728541862454,0.000817,61089.0,61088.0,0.821304]
[1728541862938,0.000817,61089.0,61088.0,0.79686152]
[1728541863155,0.000817,61089.0,61088.0,0.53512388]
[1728541863383,0.000817,61089.0,61088.0,0.3287146]
[1728541863623,0.000817,61089.0,61088.0,0.2287146]
[1728541863846,0.000817,61089.0,61088.0,0.2307146]
[1728541863847,0.04992924,61089.0,61088.0,0.2307146]
[1728541864308,0.04992924,61089.0,61088.0,0.2197146]
[1728541864541,0.04992457,61089.0,61088.0,0.2197146]
[1728541864994,0.04992457,61089.0,61088.0,0.3097146]
[1728541865221,0.04992457,61089.0,61088.0,0.3197146]
[1728541865687,0.04992457,61089.0,61088.0,0.31277212]
[1728541865690,0.04992457,61089.0,61088.0,0.28748785]
[1728541865691,0.07447836,61089.0,61088.0,0.28748785]
[1728541865928,0.07447836,61089.0,61088.0,0.30348785]
[1728541865929,0.18210166,61089.0,61088.0,0.30348785]
[1728541866162,0.18210085,61089.0,61088.0,0.30348785]
[1728541866405,0.18210085,61089.0,61088.0,0.326774]
[1728541866406,0.17270199,61089.0,61088.0,0.326774]
[1728541866621,0.17270199,61089.0,61088.0,0.28748785]
[1728541866622,0.18210122,61089.0,61088.0,0.28748785]
[1728541866865,0.2803153,61089.0,61088.0,0.29048785]
[1728541867081,0.2803153,61089.0,61088.0,0.29448785]
[1728541867298,0.07447893,61089.0,61088.0,0.29448785]
[1728541867510,0.18209286,61089.0,61088.0,0.29448785]
[1728541868401,0.28030754,61089.0,61088.0,0.29448785]
[1728541868631,0.18209286,61089.0,61088.0,0.29448785]
[1728541869068,0.18209234,61089.0,61088.0,0.29448785]
[1728541870900,0.07447234,61089.0,61088.0,0.29448785]
[1728541871113,0.000817,61089.0,61088.0,0.29448785]
[1728541871339,0.07447268,61089.0,61088.0,0.29448785]
[1728541871551,0.000817,61089.0,61088.0,0.29448785]
[1728541871768,0.07447009,61089.0,61088.0,0.29448785]
[1728541872229,0.07447282,61089.0,61088.0,0.29448785]
[1728541872461,0.000817,61089.0,61088.0,0.29448785]
[1728541873461,0.07447108,61089.0,61088.0,0.29448785]
[1728541873690,0.000817,61089.0,61088.0,0.29448785]
[1728541873901,0.28027981,61089.0,61088.0,0.29448785]
[1728541875912,0.07447161,61089.0,61088.0,0.29448785]
[1728541876162,0.28028415,61089.0,61088.0,0.29448785]
[1728541876398,0.000817,61089.0,61088.0,0.29448785]
[1728541876606,0.07447345,61089.0,61088.0,0.29448785]
[1728541876838,0.28028367,61089.0,61088.0,0.29448785]
[1728541877067,0.18207848,61089.0,61088.0,0.29448785]
[1728541877534,0.28028367,61089.0,61088.0,0.29448785]
[1728541877763,0.18207848,61089.0,61088.0,0.29448785]
[1728541877988,0.30483496,61089.0,61088.0,0.29448785]
[1728541878216,0.28029046,61089.0,61088.0,0.29448785]
[1728541878454,0.000817,61089.0,61088.0,0.29448785]
[1728541878688,0.28029902,61089.0,61088.0,0.29448785]
[1728541879142,0.28030011,61089.0,61088.0,0.29448785]
[1728541879606,0.30485319,61089.0,61088.0,0.29448785]
[1728541879847,0.28030624,61089.0,61088.0,0.29448785]
[1728541880090,0.3428944,61089.0,61088.0,0.03078985]
[1728541880340,0.40973066,61089.0,61088.0,0.007]
[1728541880592,0.55704915,61089.0,61088.0,0.007]
[1728541881049,0.55704915,61089.0,61088.0,0.170698]
[1728541881056,0.4425944,61089.0,61088.0,0.170698]
[1728541881281,0.4425944,61089.0,61088.0,0.167698]
[1728541881282,0.30483765,61089.0,61088.0,0.167698]
[1728541881498,0.30583765,61089.0,61088.0,0.167698]
[1728541881715,0.28128556,61089.0,61088.0,0.167698]
[1728541881938,0.07446156,61089.0,61088.0,0.169698]
[1728541882083,0.07546156,61089.0,61088.0,0.169698]
[1728541882321,0.07546156,61089.0,61088.0,0.165698]
[1728541882694,0.07546156,61089.0,61088.0,0.163698]
[1728541883357,0.07546156,61089.0,61088.0,0.255898]
[1728541883358,0.07546166,61089.0,61088.0,0.255898]
[1728541884215,0.07546166,61089.0,61088.0,0.253898]
[1728541884428,0.07546166,61089.0,61088.0,0.255898]
[1728541884900,0.07546166,61089.0,61088.0,0.253898]
[1728541886875,0.07546166,61089.0,61088.0,0.333098]
[1728541886876,0.001817,61089.0,61088.0,0.333098]
[1728541887822,0.05091268,61089.0,61088.0,0.33804048]
[1728541887995,0.05091234,61089.0,61088.0,0.33804048]
[1728541888436,0.001817,61089.0,61088.0,0.33804048]
[1728541890935,0.001817,61089.0,61088.0,0.36860786]
[1728541892006,0.001817,61089.0,61088.0,0.46860786]
[1728541892450,0.001817,61089.0,61088.0,0.46166538]
[1728541892669,0.05091234,61089.0,61088.0,0.37146538]
[1728541893580,0.05091234,61089.0,61088.0,0.37147363]
[1728541893796,0.05091234,61089.0,61088.0,0.27898169]
[1728541894052,0.07546001,61089.0,61088.0,0.27898169]
[1728541894721,0.07546333,61089.0,61088.0,0.28098169]
[1728541895180,0.001817,61089.0,61088.0,0.28098169]
[1728541895399,0.05091332,61089.0,61088.0,0.28098169]
[1728541895655,0.05091332,61089.0,61088.0,0.27898169]
[1728541896532,0.05091332,61089.0,61088.0,0.17898169]
[1728541896770,0.18306431,61089.0,61088.0,0.17898169]
[1728541896981,0.28125499,61089.0,61088.0,0.17898169]
[1728541897215,0.28125499,61089.0,61088.0,0.01528369]
[1728541897441,0.28125499,61089.0,61088.0,0.17898169]
[1728541897442,0.46661913,61089.0,61088.0,0.17898169]
[1728541897663,0.34387015,61089.0,61088.0,0.17898169]
[1728541897894,0.34387015,61089.0,61088.0,0.163698]
[1728541898115,0.39504792,61089.0,61088.0,0.163698]
[1728541898367,0.34387015,61089.0,61088.0,0.163698]
[1728541898857,0.39504693,61089.0,61086.0,0.163702]
[1728541899091,0.49182993,61088.0,61086.0,0.163702]
[1728541899335,0.23242332,61087.0,61086.0,0.163702]
[1728541899551,0.18124654,61087.0,61086.0,0.163702]
[1728541899763,0.2794351,61087.0,61086.0,0.163702]
[1728541900019,0.18124654,61087.0,61086.0,0.163702]
[1728541900230,0.30398775,61087.0,61086.0,0.164702]
[1728541900495,0.34756268,61087.0,61086.0,0.163702]
[1728541900731,0.22482147,61087.0,61086.0,0.163702]
[1728541901172,0.18124654,61087.0,61086.0,0.163702]
[1728541901383,0.18124654,61087.0,61086.0,0.164702]
[1728541902030,0.1812265,61087.0,61086.0,0.164703]
[1728541902732,0.1812265,61087.0,61086.0,0.163703]
[1728541903187,0.1812265,61087.0,61086.0,0.164703]
[1728541903408,0.1812265,61087.0,61086.0,0.163703]
[1728541903933,0.1812265,61087.0,61086.0,0.164703]
[1728541904381,0.27940238,61087.0,61086.0,0.164703]
[1728541904602,0.30394635,61087.0,61086.0,0.164703]
[1728541904840,0.1812265,61087.0,61086.0,0.164703]
[1728541905062,0.07362644,61087.0,61086.0,0.001]
[1728541905299,0.16165464,61089.0,61086.0,0.328406]
[1728541905300,0.12353685,61089.0,61086.0,0.328406]
[1728541905523,0.12353685,61089.0,61086.0,0.492109]
[1728541905524,0.07363715,61087.0,61086.0,0.492109]
[1728541905750,0.07363715,61087.0,61086.0,0.328406]
[1728541905979,0.04909017,61087.0,61086.0,0.492109]
[1728541906221,0.07363715,61087.0,61086.0,0.492109]
[1728541906706,0.07363715,61087.0,61086.0,0.328406]
[1728541906707,0.18122448,61087.0,61086.0,0.328406]
[1728541907186,0.30395852,61087.0,61086.0,0.492109]
[1728541907892,0.18122448,61087.0,61086.0,0.492109]
[1728541908129,0.30395852,61088.0,61086.0,0.328406]
[1728541908351,0.30395852,61087.0,61086.0,0.492109]
[1728541908567,0.12273404,61087.0,61086.0,0.492109]
[1728541909220,0.18122448,61087.0,61086.0,0.327406]
[1728541909432,0.18122448,61088.0,61086.0,0.327406]
[1728541909672,0.18122448,61087.0,61086.0,0.492109]
[1728541909882,0.18122448,61087.0,61086.0,0.491109]
[1728541910091,0.18122448,61088.0,61086.0,0.328406]
[1728541910327,0.18122448,61087.0,61086.0,0.491109]
[1728541910558,0.000817,61089.0,61086.0,0.327406]
[1728541910794,0.18128761,61088.0,61087.0,0.1637]
[1728541911464,0.18128853,61088.0,61087.0,0.1637]
[1728541912519,0.18209535,61089.0,61088.0,0.163698]
[1728541912737,0.30485758,61089.0,61088.0,0.163698]
[1728541913182,0.18208836,61089.0,61088.0,0.163698]
[1728541913413,0.3048575,61089.0,61088.0,0.163698]
[1728541914111,0.18208836,61089.0,61088.0,0.163698]
[1728541914343,0.18308836,61089.0,61088.0,0.163698]
[1728541914781,0.30585917,61089.0,61088.0,0.163698]
[1728541915455,0.28130003,61089.0,61088.0,0.163698]
[1728541915914,0.18308836,61089.0,61088.0,0.163698]
[1728541916140,0.001817,61089.0,61088.0,0.163698]
[1728541916378,0.28130631,61089.0,61088.0,0.163698]
[1728541917305,0.001817,61089.0,61088.0,0.163698]
[1728541920251,0.07547327,61089.0,61088.0,0.163698]
[1728541922794,0.07547327,61089.0,61088.0,0.1878881]
[1728541923244,0.07547327,61089.0,61088.0,0.2641881]
[1728541924137,0.07547327,61089.0,61088.0,0.36423058]
[1728541924383,0.001817,61089.0,61088.0,0.36423058]
[1728541924817,0.001817,61089.0,61088.0,0.36223058]
[1728541925900,0.001817,61089.0,61088.0,0.36423058]
[1728541926326,0.001817,61089.0,61088.0,0.36223058]
[1728541926765,0.001817,61089.0,61088.0,0.239998]
[1728541926988,0.10002536,61089.0,61088.0,0.163698]
[1728541927225,0.28128403,61089.0,61088.0,0.163698]
[1728541927461,0.18307567,61089.0,61088.0,0.163698]
[1728541927673,0.001817,61089.0,61088.0,0.163698]
[1728541927895,0.28129239,61089.0,61088.0,0.163698]
[1728541928576,0.001817,61089.0,61088.0,0.163698]
[1728541928804,0.07547373,61089.0,61088.0,0.163698]
[1728541929031,0.18308191,61089.0,61088.0,0.163698]
[1728541929503,0.30584236,61089.0,61088.0,0.163698]
[1728541929734,0.18308191,61089.0,61088.0,0.163698]
[1728541931763,0.1782955,61089.0,61088.0,0.163698]
[1728541932912,0.30106625,61089.0,61088.0,0.163698]
[1728541933120,0.1782955,61089.0,61088.0,0.163698]
[1728541933357,0.3010614,61089.0,61088.0,0.163698]
[1728541933795,0.1782955,61089.0,61088.0,0.163698]
[1728541934011,0.27650834,61089.0,61088.0,0.163698]
[1728541935652,0.1782955,61089.0,61088.0,0.163698]
[1728541936118,0.30106253,61089.0,61088.0,0.163698]
[1728541936343,0.30107516,61089.0,61088.0,0.163698]
[1728541936796,0.1791135,61089.0,61088.0,0.163698]
[1728541938345,0.000818,61089.0,61088.0,0.163698]
[1728541938746,0.09905009,61089.0,61088.0,0.163698]
[1728541939013,0.09905009,61089.0,61088.0,0.342798]
[1728541939283,0.000818,61089.0,61088.0,0.344798]
[1728541939456,0.07449205,61089.0,61088.0,0.344798]
[1728541940721,0.07449205,61089.0,61088.0,0.36871487]
[1728541943136,0.000818,61089.0,61088.0,0.36871487]
[1728541943346,0.07448907,61089.0,61088.0,0.36871487]
[1728541943563,0.07448907,61089.0,61088.0,0.36671487]
[1728541944261,0.07448907,61089.0,61088.0,0.36871487]
[1728541947125,0.07448907,61089.0,61088.0,0.49462415]
[1728541947364,0.04993232,61089.0,61088.0,0.49956663]
[1728541947816,0.04993024,61089.0,61088.0,0.49956663]
[1728541948009,0.000818,61089.0,61088.0,0.49956663]
[1728541948460,0.000818,61089.0,61088.0,0.59956663]
[1728541949075,0.000818,61089.0,61088.0,0.60120263]
[1728541953341,0.000818,61089.0,61088.0,0.47529335]
[1728541953563,0.000818,61089.0,61088.0,0.60120263]
[1728541953831,0.000818,61089.0,61088.0,0.76204027]
[1728541954886,0.000818,61089.0,61088.0,0.77104027]
[1728541956235,0.000818,61089.0,61088.0,0.78104027]
[1728541959311,0.000818,61089.0,61088.0,0.49429335]
[1728541970691,0.000818,61089.0,61088.0,0.30825087]
[1728541973120,0.04990285,61089.0,61088.0,0.30825087]
[1728541976218,0.04990864,61089.0,61088.0,0.30825087]
[1728541976464,0.04990864,61089.0,61088.0,0.31025087]
[1728541978051,0.04990864,61089.0,61088.0,0.52866015]
[1728541978290,0.04990864,61089.0,61088.0,0.40275087]
[1728541978508,0.000818,61089.0,61088.0,0.40275087]
[1728541978743,0.000818,61089.0,61088.0,0.40769335]
[1728541979649,0.000818,61089.0,61088.0,0.48749335]
[1728541980526,0.000818,61089.0,61088.0,0.86174083]
[1728541980750,0.000818,61089.0,61088.0,0.61340263]
[1728541985680,0.000818,61089.0,61088.0,0.39005087]
[1728541985900,0.04992203,61089.0,61088.0,0.39005087]
[1728541986123,0.07447405,61089.0,61088.0,0.39005087]
[1728541986562,0.04993341,61089.0,61088.0,0.64333155]
[1728541986835,0.04993341,61089.0,61088.0,0.69723771]
[1728541986836,0.000818,61089.0,61088.0,0.69723771]
[1728541987055,0.000818,61089.0,61088.0,0.65413099]
[1728542001127,4.97645678,61090.0,61089.0,0.00494248]
[1728542001128,4.94453578,61090.0,61089.0,0.00494248]
[1728542001425,3.31256358,61090.0,61089.0,2.43359332]
[1728542001636,3.31256358,61090.0,61089.0,2.18725512]
[1728542001637,3.07516983,61090.0,61089.0,2.18725512]
[1728542002078,3.07516983,61090.0,61089.0,1.4076454]
[1728542002297,3.07516983,61090.0,61089.0,1.4266454]
[1728542002515,3.04243083,61090.0,61089.0,1.4266454]
[1728542002728,2.87694483,61090.0,61089.0,1.4096454]
[1728542002941,2.87694483,61090.0,61089.0,1.4236454]
[1728542003150,2.87694483,61090.0,61089.0,1.4376454]
[1728542003360,2.57626984,61090.0,61089.0,1.4376454]
[1728542003826,2.54353084,61090.0,61089.0,1.4376454]
[1728542003999,2.51079184,61090.0,61089.0,1.4376454]
[1728542004214,2.41257484,61090.0,61089.0,1.4376454]
[1728542004435,2.37983584,61090.0,61089.0,1.4376454]
[1728542004855,2.31435784,61090.0,61089.0,1.44578041]
[1728542005071,2.24887984,61090.0,61089.0,1.44578041]
[1728542005501,2.17861984,61090.0,61089.0,1.44578041]
[1728542005706,1.47305817,61090.0,61089.0,1.44578041]
[1728542005970,1.40740144,61090.0,61089.0,1.49388713]
[1728542006159,1.39614575,61090.0,61089.0,1.49388713]
[1728542006371,1.38279004,61090.0,61089.0,1.49388713]
[1728542006585,1.11864599,61090.0,61089.0,1.66648713]
[1728542006804,0.35835628,61090.0,61089.0,1.66648713]
[1728542007018,0.35835628,61090.0,61089.0,1.61838041]
[1728542007230,0.31339107,61090.0,61089.0,1.61838041]
[1728542007448,0.14970107,61090.0,61089.0,1.44578041]
[1728542007729,0.14970107,61090.0,61089.0,1.46104242]
[1728542008150,0.14970107,61090.0,61089.0,1.44704242]
[1728542008574,7e-08,61091.0,61090.0,0.48113448]
[1728542008795,7e-08,61091.0,61090.0,0.65723413]
[1728542009068,7e-08,61091.0,61090.0,0.66378213]
[1728542010132,7e-08,61091.0,61090.0,0.69178213]
[1728542011053,7e-08,61091.0,61090.0,0.68978213]
[1728542011287,0.00317857,61100.0,61099.0,0.27061048]
[1728542011288,0.00237864,61100.0,61099.0,0.27061048]
[1728542011518,0.00237864,61100.0,61099.0,0.44671013]
[1728542012652,0.00237864,61100.0,61099.0,0.29787249]
[1728542012899,0.00237864,61100.0,61099.0,0.3118798]
[1728542013133,0.00237864,61100.0,61099.0,0.31187969]
[1728542013359,0.00237864,61100.0,61099.0,0.28387969]
[1728542013605,0.00237864,61100.0,61099.0,0.29987969]
[1728542014311,0.00237864,61100.0,61099.0,0.29988492]
[1728542014549,0.00237864,61100.0,61099.0,0.20694244]
[1728542014760,0.18187864,61100.0,61099.0,0.191668]
[1728542014987,0.18187864,61100.0,61099.0,0.163668]
[1728542015476,0.18187864,61100.0,61099.0,0.176668]
[1728542015700,0.10057864,61100.0,61099.0,0.176668]
[1728542015915,0.10057864,61100.0,61099.0,0.270668]
[1728542016130,0.10057864,61100.0,61099.0,0.266668]
[1728542016568,0.10057864,61100.0,61099.0,0.273668]
[1728542016802,0.10057864,61100.0,61099.0,0.266668]
[1728542017230,0.10057864,61100.0,61099.0,0.29113807]
[1728542017500,0.00237864,61100.0,61099.0,0.29508055]
[1728542017725,0.00237864,61100.0,61099.0,0.31036208]
[1728542017947,0.00319664,61100.0,61099.0,0.31036208]
[1728542018179,0.00319664,61100.0,61099.0,0.31136208]
[1728542018402,0.00319664,61100.0,61099.0,0.31136095]
[1728542019660,0.00319664,61100.0,61099.0,0.30936095]
[1728542019897,0.00319664,61100.0,61099.0,0.29408055]
[1728542020122,0.00319664,61100.0,61099.0,0.29608055]
[1728542024557,0.00319664,61100.0,61099.0,0.29408055]
[1728542026495,0.00319664,61100.0,61099.0,0.29608055]
[1728542027409,0.00319664,61100.0,61099.0,0.29408055]
[1728542029187,0.00319664,61100.0,61099.0,0.29571655]
[1728542029639,0.00319664,61100.0,61099.0,0.29077407]
[1728542030741,0.00319664,61100.0,61099.0,0.29277407]
[1728542031908,0.00319664,61100.0,61099.0,0.29771655]
[1728542033044,0.00319664,61100.0,61099.0,0.31299772]
[1728542033515,0.00319664,61100.0,61099.0,0.39079772]
[1728542038938,0.00319664,61100.0,61099.0,0.39081016]
[1728542039157,0.00319664,61100.0,61099.0,0.37551655]
[1728542039374,0.00319664,61100.0,61099.0,0.39081032]
[1728542041736,0.00319664,61100.0,61099.0,0.37551655]
[1728542041986,0.00319664,61100.0,61099.0,0.39081876]
[1728542043166,0.00319664,61100.0,61099.0,0.50851876]
[1728542044066,0.00319664,61100.0,61099.0,0.50751876]
[1728542044287,0.00319664,61100.0,61099.0,0.51651876]
[1728542044765,0.00319664,61100.0,61099.0,0.49221655]
[1728542045002,0.00319664,61100.0,61099.0,0.51652175]
[1728542045455,0.00319664,61100.0,61099.0,0.52652175]
[1728542045896,0.00319664,61100.0,61099.0,0.51652175]
[1728542046148,0.00319664,61100.0,61099.0,0.68735939]
[1728542046604,0.00319664,61100.0,61099.0,0.71035939]
[1728542048232,0.00319664,61100.0,61099.0,1.12906539]
[1728542048451,0.00319664,61100.0,61099.0,1.12706539]
[1728542050700,0.00319664,61100.0,61099.0,1.06158539]
[1728542050913,0.00319664,61100.0,61099.0,0.83626867]
[1728542053005,0.00319664,61100.0,61099.0,1.50127267]
[1728542053449,0.00319664,61100.0,61099.0,1.34836567]
[1728542054556,0.00149243,61100.0,61099.0,1.34836567]
[1728542054765,0.00149243,61100.0,61099.0,1.33506047]
[1728542055021,0.00149243,61100.0,61099.0,1.35034056]
[1728542055722,0.00149243,61100.0,61099.0,1.34834056]
[1728542056797,0.00149243,61100.0,61099.0,1.35034056]
[1728542057023,0.00149243,61100.0,61099.0,1.34834056]
[1728542058159,0.00149243,61100.0,61099.0,1.35034056]
[1728542058819,0.00149243,61100.0,61099.0,1.34834056]
[1728542062485,0.00149243,61100.0,61099.0,1.12672156]
[1728542064882,0.00149243,61100.0,61099.0,1.12672875]
[1728542066938,0.00149243,61100.0,61099.0,1.00081947]
[1728542067150,0.00149243,61100.0,61099.0,1.04911275]
[1728542068316,0.00149243,61100.0,61099.0,0.83625075]
[1728542068576,0.00149243,61100.0,61099.0,1.35836475]
[1728542069459,0.00149243,61100.0,61099.0,1.30064875]
[1728542070339,0.000818,61101.0,61100.0,0.125]
[1728542070557,0.000818,61101.0,61100.0,0.4697334]
[1728542070778,0.000818,61101.0,61100.0,1.3047244]
[1728542071237,0.000818,61101.0,61100.0,1.33020321]
[1728542071710,0.000818,61101.0,61100.0,1.30473608]
[1728542071934,0.000818,61101.0,61100.0,1.30973608]
[1728542072154,0.000818,61101.0,61100.0,0.67294508]
[1728542072373,0.000818,61101.0,61100.0,1.00491959]
[1728542072615,0.000818,61101.0,61100.0,1.01891959]
[1728542073050,0.000818,61101.0,61100.0,1.02691959]
[1728542073528,0.000818,61101.0,61100.0,1.01891959]
[1728542074003,0.000818,61101.0,61100.0,1.03291959]
[1728542074463,0.000818,61101.0,61100.0,1.0074203]
[1728542077036,0.000818,61101.0,61100.0,1.0090563]
[1728542078964,0.04902343,61114.0,61113.0,0.00694248]
[1728542079209,0.04906169,61116.0,61115.0,0.163625]
[1728542079467,0.04906169,61116.0,61115.0,0.18092396]
[1728542080520,0.20566555,61117.0,61115.0,0.01729896]
[1728542080760,0.20566555,61117.0,61116.0,0.17892196]
[1728542080976,0.20566555,61117.0,61116.0,0.18092196]
[1728542082110,0.20566555,61117.0,61116.0,0.165623]
[1728542082337,0.20566555,61117.0,61116.0,0.18093721]
[1728542082580,0.1321304,61117.0,61116.0,0.18093721]
[1728542083706,0.31331639,61117.0,61116.0,0.18093721]
[1728542084436,0.31331639,61117.0,61116.0,0.17893721]
[1728542084668,0.41136326,61117.0,61116.0,0.17893721]
[1728542085101,0.41136326,61117.0,61116.0,0.163623]
[1728542085321,0.41136326,61117.0,61116.0,0.17893718]
[1728542085815,0.40975333,61117.0,61116.0,0.17893718]
[1728542087352,0.40975333,61117.0,61116.0,0.20235244]
[1728542088074,0.40998678,61117.0,61116.0,0.20235244]
[1728542088523,0.31178036,61117.0,61116.0,0.20235244]
[1728542088744,0.43453838,61117.0,61116.0,0.20235244]
[1728542088956,0.31178036,61117.0,61116.0,0.03872944]
[1728542089180,0.44107038,61117.0,61116.0,0.02341526]
[1728542089620,0.44107038,61117.0,61116.0,0.001634]
[1728542089837,0.44107038,61117.0,61116.0,0.165257]
[1728542090062,0.44188738,61117.0,61116.0,0.165257]
[1728542090512,0.39069736,61117.0,61116.0,0.165257]
[1728542090962,0.31259736,61117.0,61116.0,0.165257]
[1728542092588,0.19649736,61117.0,61116.0,0.361172]
[1728542092829,0.19649736,61117.0,61116.0,0.28551448]
[1728542092830,0.31933911,61117.0,61116.0,0.28551448]
[1728542093075,0.19649736,61117.0,61116.0,0.28551448]
[1728542093514,0.0889301,61117.0,61116.0,0.28551448]
[1728542093976,0.0889301,61117.0,61116.0,0.28751448]
[1728542094644,0.2039301,61117.0,61116.0,0.280572]
[1728542094858,0.2039301,61117.0,61116.0,0.267257]
[1728542095070,0.2039301,61117.0,61116.0,0.28056519]
[1728542095311,0.2039301,61117.0,61116.0,0.28056502]
[1728542095540,0.13023747,61117.0,61116.0,0.28056502]
[1728542095758,0.2039301,61117.0,61116.0,0.28056502]
[1728542096621,0.13023747,61117.0,61116.0,0.28056502]